bitfinex/quotes_BTCUSD_20251224
["timestamp","ask_amount","ask_price","bid_price","bid_amount"]
[1766553369520,0.01460975,87126.0,87113.0,0.01147934]
[1766553369726,0.000549,87113.0,87112.0,0.01147947]
[1766553370113,0.17931288,87119.0,87111.0,0.01152]
[1766553370333,0.01147894,87116.0,87111.0,0.01148]
[1766553370759,0.01147907,87115.0,87111.0,0.01148]
[1766553370957,0.13339921,87114.0,87111.0,0.01148]
[1766553371160,0.13339934,87113.0,87107.0,0.01148]
[1766553371476,0.12192,87113.0,87107.0,0.01148]
[1766553373776,0.12192,87113.0,87107.0,0.02296013]
[1766553373986,0.01147881,87117.0,87107.0,0.02296013]
[1766553374184,0.12192,87118.0,87109.0,0.01147987]
[1766553374360,0.12192,87118.0,87110.0,0.01147973]
[1766553374566,0.01148,87120.0,87111.0,0.0114796]
[1766553375228,0.01148,87120.0,87112.0,0.01147947]
[1766553375552,0.01148,87120.0,87111.0,0.1348296]
[1766553375949,0.01148,87120.0,87112.0,0.01147947]
[1766553376147,0.01148,87119.0,87116.0,0.01147894]
[1766553376357,0.010931,87119.0,87116.0,0.01147894]
[1766553376514,0.010931,87119.0,87115.0,0.01147907]
[1766553377186,0.010931,87119.0,87114.0,0.01147921]
[1766553377332,0.010931,87119.0,87113.0,0.01147934]
[1766553378352,0.010931,87119.0,87114.0,0.01147921]
[1766553378857,0.010931,87119.0,87113.0,0.01147934]
[1766553379057,0.010931,87119.0,87114.0,0.01147921]
[1766553379208,0.010931,87119.0,87115.0,0.01147907]
[1766553380479,0.010931,87119.0,87116.0,0.01147894]
[1766553380682,0.010931,87119.0,87115.0,0.01147907]
[1766553381050,1e-06,87119.0,87115.0,0.01147907]
[1766553381247,1e-06,87119.0,87116.0,0.01147894]
[1766553381632,1e-06,87119.0,87115.0,0.01147907]
[1766553383678,1e-06,87119.0,87116.0,0.01147894]
[1766553384462,1e-06,87119.0,87113.0,0.01147934]
[1766553385266,1e-06,87119.0,87114.0,0.01147921]
[1766553385466,1e-06,87119.0,87113.0,0.01147934]
[1766553385669,1e-06,87119.0,87114.0,0.01147921]
[1766553386079,1e-06,87119.0,87113.0,0.01147934]
[1766553386280,0.02295802,87123.0,87114.0,0.01147921]
[1766553386469,0.01148,87123.0,87115.0,0.01147907]
[1766553386681,0.01148,87123.0,87114.0,0.01147921]
[1766553386882,0.01148,87123.0,87115.0,0.01147907]
[1766553387082,0.01148,87123.0,87114.0,0.01147921]
[1766553387266,0.02295802,87123.0,87114.0,0.01147921]
[1766553388010,0.01147828,87121.0,87110.0,0.3770091]
[1766553388370,0.01147855,87119.0,87110.0,0.3770091]
[1766553388572,0.01147855,87119.0,87110.0,0.36552937]
[1766553388818,0.13567868,87118.0,87110.0,0.36552937]
[1766553390128,0.000549,87110.0,87104.0,0.01148052]
[1766553390335,0.124749,87110.0,87104.0,0.01148]
[1766553390533,0.1242,87110.0,87104.0,0.01148]
[1766553391764,0.1242,87110.0,87102.0,0.00010725]
[1766553392724,0.1242,87109.0,87102.0,0.00010725]
[1766553393167,0.01148,87108.0,87102.0,0.00010725]
[1766553393343,0.1242,87108.0,87102.0,0.00010725]
[1766553396798,0.1242,87108.0,87102.0,0.01158804]
[1766553396995,0.02295947,87112.0,87102.0,0.01158804]
[1766553397179,0.02295947,87112.0,87103.0,0.01148066]
[1766553397378,0.02295947,87112.0,87102.0,0.01158804]
[1766553397578,0.01148,87112.0,87104.0,0.01148052]
[1766553397795,0.01148,87112.0,87105.0,0.01148039]
[1766553397999,0.010931,87112.0,87109.0,0.01147987]
[1766553398608,0.12674815,87122.0,87112.0,0.01147947]
[1766553398846,0.01148,87121.0,87115.0,0.01147907]
[1766553399067,0.01148,87120.0,87115.0,0.01147907]
[1766553399228,0.01148,87120.0,87114.0,0.01147921]
[1766553399850,0.01148,87120.0,87113.0,0.01147934]
[1766553400438,0.01148,87120.0,87114.0,0.01147921]
[1766553401048,0.01148,87120.0,87113.0,0.01147934]
[1766553401388,0.06886665,87125.0,87112.0,0.13619947]
[1766553401389,0.11527,87136.0,87115.0,0.11847]
[1766553401595,0.01147736,87128.0,87120.0,0.00055]
[1766553401754,0.01147749,87127.0,87119.0,0.37700937]
[1766553401956,0.01147776,87125.0,87119.0,0.37700937]
[1766553402156,0.01147776,87125.0,87119.0,0.01148]
[1766553402359,0.11527,87123.0,87112.0,0.01147947]
[1766553402671,0.11527,87122.0,87113.0,0.01148]
[1766553402904,0.12674815,87122.0,87113.0,0.01148]
[1766553403076,0.11527,87122.0,87113.0,0.02295934]
[1766553403278,0.11527,87122.0,87114.0,0.01147921]
[1766553403607,0.02295776,87125.0,87115.0,0.01147907]
[1766553404165,0.01147802,87123.0,87113.0,0.14767934]
[1766553404363,0.01147868,87118.0,87113.0,3.99e-06]
[1766553404589,0.11527,87117.0,87113.0,3.99e-06]
[1766553406762,0.11527,87117.0,87110.0,0.01147973]
[1766553408126,0.11527,87117.0,87111.0,0.0114796]
[1766553408327,0.11527,87117.0,87112.0,0.01147947]
[1766553408543,0.11527,87117.0,87111.0,0.0114796]
[1766553408952,0.11527,87117.0,87112.0,0.01147947]
[1766553409525,0.11527,87117.0,87111.0,0.0114796]
[1766553411812,0.11527,87117.0,87112.0,0.01147947]
[1766553411954,0.11527,87117.0,87111.0,0.0114796]
[1766553412156,0.11527,87117.0,87110.0,0.01147973]
[1766553413234,0.11527,87117.0,87109.0,0.01148]
[1766553413397,0.12674907,87115.0,87105.0,0.01148039]
[1766553413605,0.11527,87112.0,87104.0,0.01148052]
[1766553414026,0.11527,87112.0,87103.0,0.01148066]
[1766553414563,0.11527,87112.0,87104.0,0.01148052]
[1766553415051,0.12674947,87112.0,87103.0,0.01148066]
[1766553415365,0.11527,87112.0,87105.0,0.01148039]
[1766553415701,0.11527,87112.0,87104.0,0.01148052]
[1766553416485,0.12674947,87112.0,87102.0,0.02306804]
[1766553416706,0.12674947,87112.0,87104.0,0.01148052]
[1766553416707,0.11527,87112.0,87104.0,0.01148052]
[1766553417682,0.09884554,87112.0,87103.0,0.01148066]
[1766553417889,0.01148,87116.0,87108.0,0.18211947]
[1766553418100,0.01148,87116.0,87110.0,0.01147973]
[1766553418258,0.01148,87116.0,87109.0,0.01147987]
[1766553418459,0.01148,87116.0,87108.0,0.1362]
[1766553418712,0.01148,87116.0,87109.0,0.01147987]
[1766553419085,0.01148,87116.0,87110.0,0.01147973]
[1766553419615,0.01148,87116.0,87111.0,0.0114796]
[1766553419975,0.01148,87116.0,87110.0,0.01147973]
[1766553420413,0.01148,87116.0,87109.0,0.01147987]
[1766553420644,0.01148,87116.0,87108.0,0.1362]
[1766553421197,0.13196921,87114.0,87104.0,0.01148052]
[1766553421402,0.12049,87112.0,87103.0,0.01148066]
[1766553422245,0.12049,87112.0,87104.0,0.01148052]
[1766553422449,0.12049,87112.0,87106.0,0.01148026]
[1766553422735,0.11994,87112.0,87105.0,0.01148039]
[1766553423101,0.11994,87112.0,87107.0,0.01148013]
[1766553423708,0.11994,87112.0,87105.0,0.01148039]
[1766553424388,0.11994,87112.0,87102.0,0.02306804]
[1766553424717,0.11994,87112.0,87103.0,0.01148066]
[1766553425340,0.11994,87112.0,87104.0,0.01148052]
[1766553425772,0.11994,87112.0,87105.0,0.01148039]
[1766553426345,0.11994,87112.0,87104.0,0.01148052]
[1766553426556,0.11994,87112.0,87105.0,0.01148039]
[1766553427167,0.11994,87112.0,87104.0,0.01148052]
[1766553427790,0.11994,87112.0,87103.0,0.01148066]
[1766553428339,0.13141947,87112.0,87103.0,0.01148066]
[1766553428782,0.11994,87112.0,87104.0,0.01148052]
[1766553429360,0.13141947,87112.0,87103.0,0.01148066]
[1766553429759,0.0114796,87111.0,87102.0,0.02306804]
[1766553430179,0.13141947,87112.0,87102.0,0.02306804]
[1766553430403,0.11994,87112.0,87103.0,0.01148066]
[1766553430609,0.0114796,87111.0,87102.0,0.02306804]
[1766553430789,0.13141947,87112.0,87102.0,0.02306804]
[1766553431986,0.13141947,87112.0,87103.0,0.01148066]
[1766553432187,0.11994,87112.0,87104.0,0.01148052]
[1766553432829,0.11994,87112.0,87105.0,0.01148039]
[1766553433185,0.11994,87112.0,87104.0,0.01148052]
[1766553434558,0.01147907,87115.0,87105.0,0.01148039]
[1766553434761,0.01147907,87115.0,87106.0,0.01148026]
[1766553435433,0.01147907,87115.0,87105.0,0.01148039]
[1766553435971,0.01147907,87115.0,87106.0,0.01148026]
[1766553436123,0.14344894,87116.0,87106.0,0.01148026]
[1766553436744,0.01147934,87113.0,87104.0,0.12036]
[1766553437282,0.01147921,87114.0,87104.0,0.13184052]
[1766553437582,0.01147934,87113.0,87104.0,0.13184052]
[1766553437786,0.01147921,87114.0,87104.0,0.13184052]
[1766553437931,0.01147947,87112.0,87102.0,0.02306804]
[1766553438135,0.12049,87113.0,87104.0,0.01148052]
[1766553438667,0.12049,87113.0,87105.0,0.01148039]
[1766553438866,0.12049,87113.0,87104.0,0.01148052]
[1766553441282,0.001099,87104.0,87102.0,0.00010725]
[1766553441468,0.01148052,87104.0,87100.0,0.0001]
[1766553442161,0.01148066,87103.0,87094.0,0.01148184]
[1766553442366,0.01148052,87104.0,87094.0,0.01148184]
[1766553442566,0.13197026,87106.0,87095.0,0.01148171]
[1766553443023,0.13197039,87105.0,87096.0,0.01148158]
[1766553443528,0.01148039,87105.0,87095.0,0.01148171]
[1766553443727,0.01148026,87106.0,87097.0,0.01148145]
[1766553443934,0.01148026,87106.0,87096.0,0.01148158]
[1766553444324,0.01148026,87106.0,87096.0,0.37701095]
[1766553444536,0.01148026,87106.0,87096.0,0.01148158]
[1766553444737,0.01148026,87106.0,87096.0,0.37701095]
[1766553446079,0.01148026,87106.0,87097.0,0.01148145]
[1766553446378,0.01148026,87106.0,87096.0,0.37701095]
[1766553446532,0.01148026,87106.0,87096.0,0.49737095]
[1766553447313,0.12049,87107.0,87103.0,0.01148066]
[1766553447454,0.12049,87114.0,87099.0,0.12036]
[1766553447637,0.01147907,87115.0,87107.0,0.0001]
[1766553447843,0.01148,87113.0,87107.0,0.0001]
[1766553448066,0.01148,87113.0,87105.0,0.13184039]
[1766553448471,0.01147802,87123.0,87109.0,0.05739935]
[1766553448670,0.01147868,87118.0,87111.0,0.12129]
[1766553448876,0.01147881,87117.0,87111.0,0.12129]
[1766553449086,0.01147894,87116.0,87111.0,0.12129]
[1766553449518,0.01147881,87117.0,87111.0,0.12129]
[1766553449702,0.01147868,87118.0,87111.0,0.12129]
[1766553450884,0.01147855,87119.0,87111.0,0.12129]
[1766553451469,0.01147881,87117.0,87111.0,0.12129]
[1766553451659,0.13321,87122.0,87112.0,0.01147947]
[1766553452011,0.01148,87128.0,87122.0,0.0001]
[1766553452209,0.02295736,87128.0,87119.0,0.01147855]
[1766553452513,0.14468736,87128.0,87119.0,0.01147855]
[1766553452864,0.13321,87128.0,87120.0,0.01147842]
[1766553453361,0.14468736,87128.0,87119.0,0.01147855]
[1766553454000,0.13321,87128.0,87119.0,0.01147855]
[1766553454305,0.14468736,87128.0,87119.0,0.01147855]
[1766553454659,0.02295736,87128.0,87118.0,0.01147868]
[1766553454863,0.13557736,87128.0,87119.0,0.01147855]
[1766553455683,0.01148,87128.0,87120.0,0.01147842]
[1766553455900,1.6,87129.0,87121.0,0.01147828]
[1766553456112,1.6,87129.0,87120.0,0.12952842]
[1766553456327,1.6,87129.0,87120.0,0.11805]
[1766553456525,1.6,87129.0,87120.0,0.12952842]
[1766553457023,1.6,87129.0,87122.0,0.01147815]
[1766553457342,1.6,87129.0,87123.0,0.01147802]
[1766553457550,1.6,87129.0,87121.0,0.01147828]
[1766553457779,1.6,87129.0,87122.0,0.01147815]
[1766553457953,1.6,87129.0,87121.0,0.01147828]
[1766553458147,1.6,87129.0,87122.0,0.01147815]
[1766553458352,1.6,87129.0,87121.0,0.01147828]
[1766553458550,1.6,87129.0,87122.0,0.01147815]
[1766553459394,1.6,87129.0,87123.0,0.01147802]
[1766553459757,1.6,87129.0,87122.0,0.01147815]
[1766553459958,1.6,87129.0,87120.0,0.12952842]
[1766553460170,0.000449,87120.0,87114.0,0.01147921]
[1766553460357,0.00055,87116.0,87115.0,0.01148]
[1766553460556,0.00055,87116.0,87111.0,0.0114796]
[1766553460895,0.12409842,87120.0,87113.0,0.01148]
[1766553461087,0.11262,87120.0,87113.0,0.01148]
[1766553461680,0.11262,87120.0,87113.0,0.01156205]
[1766553462513,0.12409842,87120.0,87110.0,0.02295973]
[1766553462749,0.11262,87119.0,87110.0,0.01148]
[1766553462954,0.12409855,87119.0,87110.0,0.01148]
[1766553463125,0.01147881,87117.0,87107.0,0.01148013]
[1766553463324,0.01147894,87116.0,87108.0,0.01148]
[1766553464512,0.11262,87117.0,87108.0,0.02296]
[1766553464993,0.11262,87117.0,87109.0,0.01147987]
[1766553465262,0.11262,87117.0,87108.0,0.02296]
[1766553465665,0.01147894,87116.0,87108.0,0.01148]
[1766553466998,0.12409881,87117.0,87108.0,0.01148]
[1766553467593,0.12409881,87117.0,87108.0,0.02296]
[1766553467978,0.11262,87117.0,87109.0,0.01147987]
[1766553468183,0.02301995,87120.0,87109.0,0.01147987]
[1766553468385,0.01154153,87120.0,87112.0,0.01147947]
[1766553468673,6.153e-05,87120.0,87117.0,0.06887247]
[1766553468835,0.01148,87126.0,87120.0,0.11814847]
[1766553468985,0.01152922,87126.0,87120.0,0.11805]
[1766553470491,0.01152922,87126.0,87120.0,0.12952842]
[1766553470635,0.01152922,87126.0,87120.0,0.11805]
[1766553470982,0.01152922,87126.0,87120.0,0.12952842]
[1766553471221,4.922e-05,87126.0,87120.0,0.12952842]
[1766553471433,4.922e-05,87126.0,87079.0,0.10331645]
[1766553471434,0.03085685,87162.0,87154.0,0.005993]
[1766553471647,0.01147302,87161.0,87154.0,0.005993]
[1766553471847,0.05744271,87162.0,87155.0,0.01148]
[1766553472020,7.797e-05,87162.0,87155.0,0.01148]
[1766553472223,0.11262,87161.0,87156.0,0.01152]
[1766553472394,0.11262,87161.0,87158.0,0.01147341]
[1766553472574,7.797e-05,87162.0,87157.0,0.01147354]
[1766553472781,7.797e-05,87162.0,87157.0,0.12952354]
[1766553473098,7.797e-05,87162.0,87158.0,0.01147341]
[1766553473306,7.797e-05,87162.0,87157.0,0.11805]
[1766553473514,7.797e-05,87162.0,87157.0,0.12952354]
[1766553473712,0.00055,87157.0,87156.0,0.01152]
[1766553473914,0.00055,87157.0,87147.0,0.01147486]
[1766553473915,0.067,87157.0,87147.0,0.01147486]
[1766553474095,0.16110421,87155.0,87145.0,0.01148]
[1766553474274,0.01147394,87154.0,87145.0,0.01148]
[1766553474478,0.16110421,87155.0,87145.0,0.01148]
[1766553474741,0.1496304,87155.0,87145.0,0.01148]
[1766553475134,0.1496304,87155.0,87145.0,0.02295512]
[1766553475332,0.0826304,87155.0,87145.0,0.02295512]
[1766553475746,0.0826304,87155.0,87145.0,0.01147512]
[1766553476643,0.0826304,87155.0,87146.0,0.01147499]
[1766553476858,0.00055,87146.0,87144.0,0.01147525]
[1766553477038,0.09410421,87155.0,87143.0,0.14100539]
[1766553477600,0.0826304,87155.0,87144.0,0.01147525]
[1766553477803,0.067,87154.0,87143.0,0.01148]
[1766553477955,0.00055,87144.0,87143.0,0.01148]
[1766553478292,0.01147446,87150.0,87143.0,0.01148]
[1766553478842,0.067,87151.0,87143.0,0.01093]
[1766553480235,0.067,87151.0,87140.0,0.01147578]
[1766553481333,0.01147262,87164.0,87149.0,0.0114746]
[1766553481544,0.01148,87161.0,87153.0,0.1125]
[1766553482079,0.01148,87161.0,87153.0,0.12397407]
[1766553482612,0.01148,87161.0,87151.0,0.01147433]
[1766553482796,0.08886,87161.0,87148.0,0.01147473]
[1766553483164,0.01147315,87160.0,87148.0,0.01147473]
[1766553483380,0.01147315,87160.0,87147.0,0.1125]
[1766553483381,0.01147328,87159.0,87147.0,0.1125]
[1766553483561,0.000549,87148.0,87147.0,0.1125]
[1766553483913,0.01147341,87158.0,87147.0,0.1125]
[1766553484909,0.02295328,87159.0,87147.0,0.12397486]
[1766553486532,0.02295328,87159.0,87148.0,0.01147473]
[1766553486746,0.02295328,87159.0,87147.0,0.12397486]
[1766553487153,0.02295328,87159.0,87148.0,0.01147473]
[1766553487389,0.01148,87159.0,87151.0,0.01147433]
[1766553487730,0.01148,87159.0,87148.0,0.18134776]
[1766553487931,0.01148,87159.0,87149.0,0.1239746]
[1766553488701,0.01148,87159.0,87150.0,0.01147446]
[1766553489303,0.01148,87159.0,87149.0,0.1239746]
[1766553490888,0.01148,87159.0,87150.0,0.01147446]
[1766553491292,0.01148,87159.0,87150.0,0.12397446]
[1766553491516,0.01148,87159.0,87150.0,0.12362383]
[1766553491723,0.01148,87159.0,87151.0,0.01147433]
[1766553491898,0.01148,87159.0,87150.0,0.1125]
[1766553492733,0.01148,87159.0,87150.0,0.12397446]
[1766553492900,0.01148,87159.0,87150.0,0.1125]
[1766553493742,0.01148,87159.0,87150.0,0.12397446]
[1766553494061,0.01148,87159.0,87150.0,0.1125]
[1766553498873,0.01148,87159.0,87150.0,0.12397446]
[1766553499471,0.01148,87159.0,87150.0,0.1125]
[1766553500377,0.01148,87159.0,87150.0,0.12397446]
[1766553500580,0.02295328,87159.0,87150.0,0.1125]
[1766553500808,0.01148,87159.0,87150.0,0.1125]
[1766553501008,0.02295328,87159.0,87150.0,0.1125]
[1766553501206,0.05736708,87158.0,87150.0,0.11195]
[1766553501382,0.02295328,87159.0,87150.0,0.11195]
[1766553501767,0.01147354,87157.0,87150.0,0.11195]
[1766553501970,0.01147354,87157.0,87150.0,0.08299658]
[1766553502170,0.0114746,87149.0,87141.0,0.04125086]
[1766553502451,0.0114746,87149.0,87139.0,0.16522677]
[1766553502452,0.01148,87148.0,87139.0,0.16522677]
[1766553502585,0.010381,87148.0,87143.0,0.1125]
[1766553502935,0.01148,87149.0,87143.0,0.1125]
[1766553505197,0.01147473,87148.0,87140.0,0.04125086]
[1766553505396,0.000549,87143.0,87140.0,0.04125086]
[1766553505874,0.0229546,87149.0,87140.0,0.04125086]
[1766553506081,0.10630473,87148.0,87140.0,0.04125086]
[1766553506338,0.10630473,87148.0,87137.0,0.1125]
[1766553506339,0.05358,87147.0,87139.0,8.6e-07]
[1766553506536,0.05358,87144.0,87131.0,0.24325326]
[1766553506736,0.06506,87143.0,87134.0,0.01147657]
[1766553507712,0.06506,87143.0,87133.0,0.0114767]
[1766553507908,0.06506,87143.0,87134.0,0.01147657]
[1766553508117,0.06506,87143.0,87132.0,0.01147683]
[1766553508342,0.06506,87143.0,87133.0,0.0114767]
[1766553509322,0.06506,87143.0,87131.0,0.12397697]
[1766553509520,0.000549,87131.0,87130.0,0.0001]
[1766553509720,0.000549,87131.0,87124.0,0.12541789]
[1766553509925,0.05348,87133.0,87121.0,0.02295828]
[1766553510126,0.0649567,87133.0,87122.0,0.01147815]
[1766553510484,0.05348,87129.0,87115.0,0.01147907]
[1766553510723,0.000549,87122.0,87117.0,0.11398922]
[1766553511141,0.01148,87123.0,87117.0,0.11398922]
[1766553513128,0.01148,87123.0,87117.0,0.12546803]
[1766553513326,0.01148,87123.0,87118.0,0.01147868]
[1766553513527,0.01148,87123.0,87117.0,0.12546803]
[1766553513528,0.00035417,87123.0,87117.0,0.12546803]
[1766553513728,0.00035417,87123.0,87119.0,0.01147855]
[1766553514083,0.00035417,87123.0,87120.0,0.01147842]
[1766553514491,0.0115767,87133.0,87127.0,0.01147749]
[1766553514492,0.0001,87133.0,87127.0,0.01147749]
[1766553514694,0.07476552,87142.0,87130.0,0.1254171]
[1766553514695,0.01147552,87142.0,87130.0,0.1254171]
[1766553514919,0.01147539,87143.0,87132.0,0.11394]
[1766553515270,0.01147578,87140.0,87132.0,0.11394]
[1766553515641,0.06885393,87141.0,87132.0,0.11394]
[1766553515642,0.01147565,87141.0,87132.0,0.11394]
[1766553516841,0.01147552,87142.0,87132.0,0.11394]
[1766553517048,0.05737827,87141.0,87128.0,0.01148]
[1766553517272,0.001099,87132.0,87128.0,0.01148]
[1766553517751,0.01147618,87137.0,87128.0,0.01148]
[1766553517894,0.08634618,87137.0,87128.0,0.01148]
[1766553518095,0.01147644,87135.0,87128.0,0.01148]
[1766553518320,0.08634644,87135.0,87128.0,0.01148]
[1766553518731,0.07487,87135.0,87128.0,0.01148]
[1766553520050,0.07487,87135.0,87126.0,0.01147763]
[1766553520248,0.07487,87135.0,87127.0,0.01147749]
[1766553520452,0.07487,87135.0,87128.0,0.01147736]
[1766553520653,0.07487,87135.0,87127.0,0.01147749]
[1766553520857,0.07487,87135.0,87128.0,0.01147736]
[1766553521366,0.07487,87135.0,87130.0,0.0114771]
[1766553522130,0.07487,87135.0,87128.0,0.01147736]
[1766553522305,0.07487,87135.0,87127.0,0.01147749]
[1766553523226,0.07487,87135.0,87128.0,0.01147736]
[1766553523380,0.07487,87135.0,87127.0,0.01147749]
[1766553523584,0.07487,87135.0,87124.0,0.12425]
[1766553523779,0.07487,87135.0,87125.0,0.01147776]
[1766553524535,0.07487,87135.0,87124.0,0.13572789]
[1766553524736,0.07487,87135.0,87125.0,0.01147776]
[1766553524969,0.08634644,87135.0,87124.0,0.13572789]
[1766553525114,0.01147657,87134.0,87124.0,0.12425]
[1766553525302,0.08634657,87134.0,87124.0,0.12425]
[1766553525722,0.0114767,87133.0,87124.0,0.12425]
[1766553526332,0.07487,87134.0,87124.0,0.12425]
[1766553526676,0.0114767,87133.0,87124.0,0.12425]
[1766553527453,0.08634657,87134.0,87124.0,0.12425]
[1766553528251,0.07487,87134.0,87124.0,0.12425]
[1766553528809,0.08634657,87134.0,87124.0,0.12425]
[1766553529195,0.07487,87134.0,87124.0,0.13572789]
[1766553529402,0.07487,87134.0,87124.0,0.12425]
[1766553529537,0.07487,87134.0,87124.0,0.13572789]
[1766553529951,0.07487,87132.0,87122.0,0.01147815]
[1766553530164,0.07487,87132.0,87124.0,0.01148]
[1766553531238,0.06339,87131.0,87124.0,0.01148]
[1766553532309,0.07486697,87131.0,87124.0,0.010931]
[1766553533937,0.06339,87131.0,87124.0,0.010931]
[1766553534318,0.01148,87132.0,87131.0,0.000549]
[1766553534501,0.01148,87132.0,87125.0,0.13572776]
[1766553535111,0.01148,87132.0,87125.0,0.12425]
[1766553536780,0.06394,87125.0,87117.0,4.922e-05]
[1766553537018,0.07542,87125.0,87117.0,4.922e-05]
[1766553537215,0.08634776,87125.0,87117.0,4.922e-05]
[1766553537414,0.06339,87124.0,87117.0,4.922e-05]
[1766553538544,0.01148,87124.0,87117.0,4.922e-05]
[1766553538752,0.01126616,87124.0,87117.0,4.922e-05]
[1766553539356,0.01147815,87122.0,87117.0,2.2e-07]
[1766553539604,0.01147802,87123.0,87117.0,2.2e-07]
[1766553539776,0.01147802,87123.0,87108.0,0.18164981]
[1766553539777,0.01147855,87119.0,87108.0,0.01148]
[1766553539931,0.01147881,87117.0,87108.0,6.153e-05]
[1766553540156,0.01147894,87116.0,87108.0,6.153e-05]
[1766553540359,0.01147894,87116.0,87107.0,0.01148]
[1766553540680,0.01147907,87115.0,87107.0,0.01148]
[1766553540940,0.01147881,87117.0,87107.0,0.01148]
[1766553541095,0.01147894,87116.0,87107.0,0.01148]
[1766553541298,0.01147868,87118.0,87108.0,0.1146]
[1766553541496,0.01148,87119.0,87111.0,0.1146]
[1766553542108,0.01148,87119.0,87111.0,0.1260796]
[1766553542604,0.01148,87119.0,87111.0,0.1146]
[1766553545971,0.00494446,87119.0,87116.0,0.01147894]
[1766553546148,0.01148,87123.0,87119.0,0.1146]
[1766553546346,0.01148,87126.0,87119.0,0.12607855]
[1766553546970,0.01148,87126.0,87119.0,0.1146]
[1766553547153,0.01158,87130.0,87126.0,0.11515]
[1766553547662,0.01158,87130.0,87126.0,0.1146]
[1766553548068,0.0001,87130.0,87126.0,0.1146]
[1766553548273,0.01148,87134.0,87126.0,0.1146]
[1766553548844,0.02295657,87134.0,87126.0,0.1146]
[1766553549047,0.01148,87134.0,87126.0,0.1146]
[1766553549688,0.01148,87134.0,87127.0,0.01147749]
[1766553549889,0.01148,87134.0,87128.0,0.1146]
[1766553551808,0.02299644,87135.0,87128.0,0.1146]
[1766553552211,0.01152,87135.0,87128.0,0.1146]
[1766553553787,0.01097,87135.0,87130.0,0.1146]
[1766553553962,0.01148,87138.0,87132.0,0.12607683]
[1766553554159,0.01148,87138.0,87132.0,0.1146]
[1766553557737,0.001099,87132.0,87128.0,0.36548045]
[1766553557953,0.01147618,87137.0,87126.0,0.13755763]
[1766553558167,0.01147618,87137.0,87127.0,0.36548045]
[1766553558789,0.01147618,87137.0,87126.0,0.13755763]
[1766553559009,0.12802618,87137.0,87127.0,0.36548045]
[1766553559191,0.01147631,87136.0,87127.0,0.36548045]
[1766553559356,0.12802618,87137.0,87127.0,0.36548045]
[1766553559891,0.01147631,87136.0,87127.0,0.36548045]
[1766553560095,0.01147683,87132.0,87126.0,0.01148]
[1766553560473,0.01147657,87134.0,87126.0,0.01148]
[1766553560653,0.0114767,87133.0,87126.0,0.01148]
[1766553560843,0.1280267,87133.0,87120.0,0.12607842]
[1766553561051,0.000549,87126.0,87121.0,0.01148]
[1766553561250,0.000549,87126.0,87122.0,0.01147815]
[1766553561452,0.01147683,87132.0,87122.0,0.01147815]
[1766553561712,0.1280267,87133.0,87122.0,0.01147815]
[1766553562337,0.11655,87133.0,87123.0,0.01147802]
[1766553562559,0.11655,87133.0,87124.0,0.01147789]
[1766553563310,0.11655,87133.0,87123.0,0.01147802]
[1766553563518,0.11655,87133.0,87124.0,0.01147789]
[1766553563961,0.01147618,87137.0,87124.0,0.01147789]
[1766553564231,0.0001,87150.0,87143.0,0.01147539]
[1766553564446,0.00020721,87150.0,87147.0,0.12607486]
[1766553564648,0.12802302,87161.0,87148.0,0.01147473]
[1766553564857,0.01147341,87158.0,87147.0,0.1146]
[1766553565070,0.001099,87147.0,87144.0,0.01152]
[1766553565689,0.11655,87148.0,87138.0,0.01147604]
[1766553565896,0.11655,87148.0,87139.0,0.02299591]
[1766553566253,0.11655,87148.0,87139.0,0.01152]
[1766553566674,0.11655,87148.0,87139.0,0.02299591]
[1766553566880,0.11655,87148.0,87140.0,0.01147578]
[1766553567077,0.11655,87148.0,87141.0,0.01147565]
[1766553567278,0.01147433,87151.0,87140.0,0.01147578]
[1766553568001,0.01147433,87151.0,87141.0,0.01147565]
[1766553568159,0.01147433,87151.0,87140.0,0.01147578]
[1766553568357,0.01147446,87150.0,87139.0,0.02299591]
[1766553568567,0.01147446,87150.0,87140.0,0.01147578]
[1766553569302,0.01147433,87151.0,87140.0,0.01147578]
[1766553569531,0.2186542,87152.0,87140.0,0.01147578]
[1766553570045,0.01147433,87151.0,87139.0,0.02299591]
[1766553570248,0.01147433,87151.0,87140.0,0.01147578]
[1766553570649,0.01147446,87150.0,87139.0,0.02299591]
[1766553570824,0.01147446,87150.0,87140.0,0.01147578]
[1766553571099,0.000549,87140.0,87138.0,0.00010721]
[1766553571291,0.000549,87140.0,87139.0,0.01152]
[1766553571514,0.00010715,87140.0,87139.0,0.01152]
[1766553572537,1.5e-07,87140.0,87139.0,0.01152]
[1766553573420,1.5e-07,87140.0,87139.0,0.06889958]
[1766553573801,1.5e-07,87140.0,87139.0,0.26384958]
[1766553576263,0.20718,87136.0,87122.0,0.01147815]
[1766553576421,0.01147657,87134.0,87124.0,0.01148]
[1766553576623,0.01147631,87136.0,87126.0,0.19495]
[1766553576877,0.01147618,87137.0,87126.0,0.19495]
[1766553577080,0.01147631,87136.0,87126.0,0.19495]
[1766553577376,0.01147604,87138.0,87127.0,0.01147749]
[1766553577602,0.01147618,87137.0,87126.0,0.20642763]
[1766553577807,0.01147604,87138.0,87127.0,0.01147749]
[1766553578126,0.01147631,87136.0,87126.0,0.19495]
[1766553578325,0.01147618,87137.0,87126.0,0.20642763]
[1766553578528,0.01147604,87138.0,87126.0,0.20642763]
[1766553578811,0.01147618,87137.0,87129.0,0.01148]
[1766553579009,0.01147604,87138.0,87129.0,0.01148]
[1766553579623,0.01147591,87139.0,87130.0,0.19495]
[1766553579824,0.01147604,87138.0,87130.0,0.19495]
[1766553580556,1.5e-07,87140.0,87131.0,0.01147697]
[1766553580754,1.5e-07,87140.0,87138.0,0.000442]
[1766553580911,1.5e-07,87140.0,87134.0,0.02295657]
[1766553581091,1.5e-07,87140.0,87137.0,0.01147618]
[1766553581448,1.5e-07,87140.0,87137.0,0.2506]
[1766553584171,1.5e-07,87140.0,87137.0,0.26207618]
[1766553585049,1.5e-07,87140.0,87137.0,0.250493]
[1766553586081,1.5e-07,87140.0,87137.0,0.26196918]
[1766553588045,1.5e-07,87140.0,87138.0,0.2506]
[1766553588248,1.5e-07,87140.0,87139.0,0.26212]
[1766553589474,1.5e-07,87140.0,87139.0,0.31949958]
[1766553589634,1.5e-07,87148.0,87143.0,0.2506]
[1766553599706,1.5e-07,87148.0,87139.0,0.01152]
[1766553600042,0.01147486,87147.0,87139.0,0.01097]
[1766553600254,0.06884879,87148.0,87139.0,0.01097]